bitfinex/quotes_ETHUSD_20251126
["timestamp","ask_amount","ask_price","bid_price","bid_amount"]
[1764158086727,0.9459,2917.4,2917.0,6.45235746]
[1764158087802,0.4914,2917.3,2917.0,6.45235746]
[1764158089033,0.4959,2917.1,2916.8,0.001]
[1764158089232,0.4911,2916.9,2916.8,0.001]
[1764158089824,0.0004,2917.4,2916.8,0.4706]
[1764158090031,0.0004,2917.4,2916.8,7.30615746]
[1764158090032,0.4918,2917.4,2916.8,7.30615746]
[1764158090628,0.4918,2917.4,2916.8,6.82385746]
[1764158091335,0.4918,2917.4,2917.0,6.35325746]
[1764158092333,0.0004,2917.4,2917.1,0.5709]
[1764158092630,0.0004,2917.4,2917.2,6.35325746]
[1764158093018,0.0004,2917.4,2917.1,0.5709]
[1764158093224,0.0004,2917.4,2917.1,0.0886]
[1764158094354,0.4918,2917.4,2917.1,0.0886]
[1764158096223,0.0004,2917.4,2917.1,0.0886]
[1764158097122,0.0004,2917.4,2917.1,0.5709]
[1764158100651,0.0004,2917.4,2917.0,0.217]
[1764158100652,0.4959,2917.2,2917.0,0.217]
[1764158100861,0.0004,2917.4,2917.3,0.4696]
[1764158101067,0.0004,2917.4,2917.3,7.71089486]
[1764158101432,0.0004,2917.4,2917.3,7.84822943]
[1764158101634,0.0004,2917.4,2917.3,0.54283857]
[1764158101878,0.0004,2917.4,2917.3,0.13733457]
[1764158102171,0.0004,2917.4,2917.3,0.217]
[1764158102375,0.4963,2917.4,2917.3,0.217]
[1764158102933,0.4963,2917.4,2917.1,0.4914]
[1764158103169,0.9634,2917.4,2917.2,0.217]
[1764158103537,0.4963,2917.4,2917.2,0.217]
[1764158104519,0.0004,2917.4,2917.2,0.217]
[1764158104640,0.0004,2917.4,2917.3,0.4585]
[1764158105866,0.4692,2917.4,2917.2,0.217]
[1764158106082,0.0004,2917.4,2917.2,0.217]
[1764158107544,0.4671,2917.4,2917.2,0.217]
[1764158108379,0.4671,2917.6,2917.2,0.217]
[1764158110462,0.4671,2917.6,2917.2,0.6951]
[1764158110660,0.4671,2917.6,2917.2,0.217]
[1764158114866,0.4933,2917.3,2917.2,0.217]
[1764158117597,0.9439,2917.3,2916.9,0.217]
[1764158117904,0.4933,2917.0,2916.9,0.217]
[1764158118273,0.9439,2917.0,2916.9,0.217]
[1764158119700,0.9439,2917.0,2916.9,0.434]
[1764158121064,0.4506,2917.3,2916.9,0.8935]
[1764158121266,0.4522,2917.7,2917.1,0.72559411]
[1764158121598,0.4522,2917.7,2917.2,0.4595]
[1764158121999,0.4522,2917.7,2917.2,0.9279]
[1764158122198,0.0016,2917.7,2917.3,6.35349086]
[1764158122371,0.0016,2917.7,2917.6,0.4595]
[1764158122573,0.0016,2917.7,2917.6,7.53858497]
[1764158122780,0.0016,2917.7,2917.6,8.14432001]
[1764158123176,0.0016,2917.7,2917.6,6.9503259]
[1764158123622,0.0016,2917.7,2917.6,7.4187259]
[1764158125817,0.0016,2917.7,2917.6,8.14432001]
[1764158126794,0.0016,2917.7,2917.6,8.54982401]
[1764158128722,0.0016,2917.7,2917.6,8.64982401]
[1764158129222,0.0016,2917.7,2917.6,8.76682401]
[1764158130831,0.0016,2917.7,2917.6,2.41333315]
[1764158132032,0.0008,2917.7,2917.6,2.41333315]
[1764158136423,0.0008,2917.7,2917.6,1.94493315]
[1764158136606,0.4941,2917.7,2917.6,0.13733504]
[1764158136801,0.9447,2917.7,2917.6,0.13733504]
[1764158143940,0.4941,2917.7,2917.6,0.13733504]
[1764158146840,0.0008,2917.7,2917.6,0.13733504]
[1764158149951,0.4686,2917.7,2917.6,0.13733504]
[1764158150526,0.9381,2917.7,2917.6,0.13733504]
[1764158156363,0.9381,2917.7,2917.5,0.001]
[1764158156563,0.6639,2917.6,2917.5,0.001]
[1764158156739,0.6631,2917.6,2917.5,0.001]
[1764158165382,1.70905149,2917.6,2917.5,0.001]
[1764158165687,0.98345738,2917.6,2917.5,0.001]
[1764158166364,1.70905149,2917.6,2917.5,0.001]
[1764158166563,8.06381369,2917.6,2917.5,0.001]
[1764158166781,8.20121195,2917.6,2917.5,0.001]
[1764158167885,11.53878895,2917.6,2917.5,0.001]
[1764158168097,0.72559411,2917.5,2917.3,0.001]
[1764158168302,1.00245738,2917.4,2917.3,0.001]
[1764158168501,1.45405738,2917.4,2917.3,0.001]
[1764158168678,8.67181808,2917.4,2917.3,0.001]
[1764158168866,9.40927886,2917.4,2917.3,0.001]
[1764158169067,3.05451666,2917.4,2917.3,0.001]
[1764158169515,1.64845588,2917.4,2917.3,0.001]
[1764158169669,1.7796985,2917.4,2917.3,0.001]
[1764158170068,1.64229411,2917.4,2917.3,0.001]
[1764158174623,0.4651,2917.4,2917.3,0.001]
[1764158175424,0.4639,2917.7,2917.3,0.4658]
[1764158175917,0.002,2917.6,2917.3,0.4658]
[1764158176127,0.4749,2917.4,2917.3,0.001]
[1764158179730,0.002,2917.6,2917.3,0.4658]
[1764158179937,0.4651,2917.6,2917.3,0.4658]
[1764158180103,0.4651,2917.6,2917.3,0.001]
[1764158181629,0.4643,2917.6,2917.3,0.001]
[1764158183332,0.0012,2917.6,2917.3,0.001]
[1764158183502,0.0012,2917.6,2917.3,0.4577]
[1764158183699,0.0012,2917.6,2917.5,0.4648]
[1764158185002,0.0012,2917.6,2917.5,0.9215]
[1764158186131,0.0012,2917.6,2917.5,1.1385]
[1764158186532,0.0012,2917.6,2917.5,1.544004]
[1764158186916,0.0012,2917.6,2917.5,2.26959811]
[1764158189029,0.002,2918.0,2917.9,1.13109811]
[1764158189211,0.002,2918.0,2917.9,1.81289811]
[1764158189545,0.002,2918.0,2917.9,2.26959811]
[1764158190138,0.002,2918.0,2917.9,2.40689686]
[1764158193860,0.002,2918.0,2917.9,0.4648]
[1764158194040,0.4769,2918.0,2917.9,0.217]
[1764158194440,0.002,2918.0,2917.9,0.94259411]
[1764158194617,0.002,2918.0,2917.9,1.1385]
[1764158194944,0.002,2918.0,2917.9,0.6818]
[1764158195146,0.002,2918.0,2917.9,1.40739411]
[1764158195316,0.002,2918.0,2917.9,0.6818]
[1764158195645,0.002,2918.0,2917.9,1.1385]
[1764158196819,0.002,2918.0,2917.9,0.6818]
[1764158198345,0.4769,2918.0,2917.9,0.217]
[1764158199026,0.002,2918.0,2917.9,0.6818]
[1764158202155,0.002,2918.0,2917.9,1.1385]
[1764158206351,0.0012,2918.0,2917.9,1.1385]
[1764158209353,0.0012,2918.0,2917.9,1.1389]
[1764158210557,0.4529,2918.0,2917.9,0.217]
[1764158210930,0.4529,2918.0,2917.9,0.218]
[1764158211144,0.9456,2918.0,2917.9,0.217]
[1764158211859,0.4529,2918.0,2917.9,0.217]
[1764158213435,0.0012,2918.0,2917.9,0.217]
[1764158214561,0.0012,2918.0,2917.9,1.1283]
[1764158215756,0.0012,2918.0,2917.9,0.6712]
[1764158215927,0.4529,2918.0,2917.9,0.217]
[1764158216429,0.4529,2918.0,2917.9,0.001]
[1764158216641,0.9456,2918.0,2917.9,0.217]
[1764158217664,0.4529,2918.0,2917.9,0.217]
[1764158220064,0.0012,2918.0,2917.9,0.6712]
[1764158224969,0.0012,2918.0,2917.9,1.1431]
[1764158226237,0.0012,2918.0,2917.9,0.6712]
[1764158226436,0.0012,2918.0,2917.9,1.1431]
[1764158227873,0.0012,2918.0,2917.9,0.6712]
[1764158229085,0.4547,2918.0,2917.9,0.217]
[1764158231095,0.0004,2918.0,2917.9,0.217]
[1764158231599,0.0004,2918.0,2917.9,0.7004]
[1764158233903,0.4539,2918.0,2917.9,0.217]
[1764158234965,0.9199,2918.0,2917.9,0.217]
[1764158244921,0.9199,2918.0,2917.9,0.001]
[1764158245801,0.4539,2918.0,2917.9,0.001]
[1764158246325,0.0004,2918.0,2917.9,0.4609]
[1764158246620,0.0004,2918.0,2917.9,0.9475]
[1764158248941,0.0004,2918.0,2917.9,0.4609]
[1764158249240,0.0004,2918.0,2917.9,0.9475]
[1764158249938,0.0004,2918.0,2917.9,0.4609]
[1764158252036,0.4978,2918.0,2917.9,0.001]
[1764158253050,0.4978,2918.0,2917.9,0.217]
[1764158253251,0.9638,2918.0,2917.9,0.001]
[1764158253419,0.9638,2918.0,2917.9,0.217]
[1764158255244,0.9638,2918.0,2917.9,0.001]
[1764158255758,1.28399414,2918.0,2917.9,0.001]
[1764158258840,0.963,2918.0,2917.9,0.001]
[1764158259051,1.28329686,2918.0,2917.9,0.001]
[1764158261256,1.28529686,2918.0,2917.9,0.001]
[1764158270256,0.965,2918.0,2917.9,0.001]
[1764158271076,1.182,2918.0,2917.9,0.001]
[1764158274401,1.14488944,2918.0,2917.9,0.001]
[1764158276578,0.92788944,2918.0,2917.9,0.001]
[1764158279268,1.24772863,2918.0,2917.9,0.001]
[1764158280390,0.78092863,2918.0,2917.9,0.001]
[1764158280569,0.002,2918.0,2917.9,0.4612]
[1764158281571,0.4726,2918.0,2917.9,0.001]
[1764158281775,1.24425342,2918.0,2917.9,0.001]
[1764158282711,8.32372788,2918.0,2917.9,0.001]
[1764158282869,1.96984753,2918.0,2917.9,0.001]
[1764158283970,1.51814753,2918.0,2917.9,0.001]
[1764158284171,1.96984753,2918.0,2917.9,0.001]
[1764158286889,1.51814753,2918.0,2917.9,0.001]
[1764158287087,1.96984753,2918.0,2917.9,0.001]
[1764158292829,0.32195342,2918.0,2917.9,0.4664]
[1764158294633,0.002,2918.0,2917.9,0.4664]
[1764158297836,0.002,2918.0,2917.9,0.9521]
[1764158300411,0.002,2918.0,2917.9,7.30598035]
[1764158300611,0.002,2918.0,2917.9,1.08943221]
[1764158300839,0.002,2918.0,2917.9,0.4664]
[1764158302442,0.002,2918.0,2917.9,0.9521]
[1764158303309,0.002,2918.0,2917.9,0.4664]
[1764158303505,0.4668,2918.0,2917.9,0.001]
[1764158303738,0.9483,2918.0,2917.9,0.001]
[1764158304450,0.002,2918.0,2917.9,0.944]
[1764158305062,0.0012,2918.0,2917.9,0.4583]
[1764158306364,0.4992,2918.0,2917.9,0.001]
[1764158306672,0.9479,2918.0,2917.9,0.001]
[1764158307635,0.0012,2918.0,2917.9,0.001]
[1764158308165,0.4987,2918.0,2917.9,0.001]
[1764158308731,0.9479,2918.0,2917.9,0.001]
[1764158308932,0.4987,2918.0,2917.9,0.001]
[1764158309166,1.26839456,2918.0,2917.9,0.001]
[1764158309343,0.81919456,2918.0,2917.9,0.001]
[1764158310166,1.26839456,2918.0,2917.9,0.001]
[1764158310873,0.81919456,2918.0,2917.9,0.001]
[1764158312993,12.09095002,2918.0,2917.9,0.001]
[1764158313292,10.4106976,2918.0,2917.9,0.001]
[1764158313453,12.4194716,2918.0,2917.9,0.001]
[1764158313768,11.33202686,2918.0,2917.9,0.001]
[1764158313983,3.95708016,2918.0,2917.9,0.001]
[1764158314153,5.0648146,2918.0,2917.9,0.001]
[1764158314479,5.20219304,2918.0,2917.9,0.001]
[1764158314686,3.08576004,2918.0,2917.9,0.001]
[1764158314908,2.86976004,2918.0,2917.9,0.001]
[1764158315055,9.43964039,2918.0,2917.9,0.001]
[1764158316057,13.18272139,2918.0,2917.9,0.001]
[1764158316256,13.28245848,2918.0,2917.9,0.001]
[1764158317177,13.18272139,2918.0,2917.9,0.001]
[1764158317686,12.96672139,2918.0,2917.9,0.001]
[1764158317886,13.18272139,2918.0,2917.9,0.001]
[1764158318690,9.84514439,2918.0,2917.9,0.001]
[1764158319967,9.84367576,2918.0,2917.9,0.001]
[1764158321498,2.28171297,2918.0,2917.9,0.001]
[1764158321702,9.30079332,2918.0,2917.9,0.001]
[1764158321879,12.73810741,2918.0,2917.9,0.001]
[1764158322479,13.14361141,2918.0,2917.9,0.001]
[1764158322683,19.39775467,2918.0,2917.9,0.001]
[1764158322889,13.14361141,2918.0,2917.9,0.001]
[1764158323093,9.80603441,2918.0,2917.9,0.001]
[1764158323295,13.14361141,2918.0,2917.9,0.001]
[1764158323819,13.28101108,2918.0,2917.9,0.001]
[1764158324805,13.18127399,2918.0,2917.9,0.001]
[1764158325671,12.37210699,2918.0,2917.9,0.001]
[1764158326203,9.84369699,2918.0,2917.9,0.001]
[1764158326408,13.11925799,2918.0,2917.9,0.001]
[1764158326778,13.21899508,2918.0,2917.9,0.001]
[1764158327105,11.65839897,2918.0,2917.9,0.001]
[1764158327307,12.55541697,2918.0,2917.9,0.001]
[1764158327687,12.23967988,2918.0,2917.9,0.001]
[1764158327882,12.31928021,2918.0,2917.9,0.001]
[1764158328092,11.76531321,2918.0,2917.9,0.001]
[1764158328312,11.93443021,2918.0,2917.9,0.001]
[1764158328485,2.22231886,2918.0,2917.9,0.001]
[1764158329193,8.57619921,2918.0,2917.9,0.001]
[1764158329953,8.57539921,2918.0,2917.9,0.001]
[1764158331111,2.22151886,2918.0,2917.9,0.001]
[1764158331913,0.32089456,2918.0,2917.9,0.9594]
[1764158332322,0.32089456,2918.0,2917.9,0.4937]
[1764158332608,0.32089456,2918.0,2917.9,0.9594]
[1764158338325,0.32089456,2918.0,2917.9,0.4937]
[1764158339030,0.79499456,2918.0,2917.9,0.001]
[1764158339501,0.32089456,2918.0,2917.9,0.4937]
[1764158340728,0.32089456,2918.0,2917.9,0.9594]
[1764158340931,0.53689456,2918.0,2917.9,0.9594]
[1764158341231,1.01099456,2918.0,2917.9,0.001]
[1764158341435,0.53689456,2918.0,2917.9,0.001]
[1764158341638,0.53689456,2918.0,2917.9,0.4937]
[1764158343044,1.01099456,2918.0,2917.9,0.001]
[1764158343340,0.53689456,2918.0,2917.9,0.4937]
[1764158344239,0.32089456,2918.0,2917.9,0.4937]
[1764158344536,0.0004,2918.0,2917.9,0.9594]
[1764158345818,0.0004,2918.0,2917.9,0.9689]
[1764158346508,0.0004,2918.0,2917.9,1.10623551]
[1764158347541,0.0004,2918.0,2917.9,0.9689]
[1764158348639,0.0004,2918.0,2917.9,0.4937]
[1764158348852,0.0004,2918.0,2917.9,0.9689]
[1764158350743,0.0004,2918.0,2917.9,0.4937]
[1764158351949,0.4961,2918.0,2917.9,0.001]
[1764158352554,0.0004,2918.0,2917.9,0.4835]
[1764158354557,0.2176,2918.2,2917.9,0.4835]
[1764158355841,0.2176,2918.2,2918.1,0.4649]
[1764158356030,0.53761165,2918.2,2917.9,0.4573]
[1764158356231,0.2176,2918.2,2917.9,0.001]
[1764158356431,0.7048,2918.2,2917.9,0.001]
[1764158357250,0.32015203,2918.1,2917.9,0.4573]
[1764158357551,0.2176,2918.2,2917.9,0.4573]
[1764158357858,0.0016,2918.2,2918.1,0.4649]
[1764158358062,0.32175304,2918.2,2918.1,0.6473]
[1764158358359,0.32175304,2918.2,2918.1,1.1036]
[1764158359148,0.0016,2918.2,2918.1,1.1036]
[1764158360266,0.32203871,2918.2,2918.1,1.1036]
[1764158360845,0.0016,2918.2,2918.1,1.1036]
[1764158361761,0.0016,2918.2,2918.1,0.6473]
[1764158361930,0.0016,2918.2,2918.1,0.4649]
[1764158362338,0.0016,2918.2,2918.1,0.9212]
[1764158368942,0.0016,2918.2,2918.1,1.05851901]
[1764158371161,0.0016,2918.2,2918.1,0.60221901]
[1764158371367,0.0016,2918.2,2918.1,1.05851901]
[1764158372381,0.0016,2918.2,2918.1,0.9212]
[1764158374183,0.0016,2918.2,2918.1,0.4649]
[1764158374373,0.0016,2918.2,2918.1,0.9212]
[1764158379400,0.0008,2918.2,2918.1,1.05851524]
[1764158383191,0.0008,2918.2,2918.1,1.27451524]
[1764158387782,0.0008,2918.2,2918.1,1.05851524]
[1764158387979,0.0008,2918.2,2918.1,0.60221524]
[1764158388199,0.0008,2918.2,2918.1,0.81821524]
[1764158389201,0.0008,2918.2,2918.1,1.26941524]
[1764158389518,0.4964,2918.2,2918.1,0.81821524]
[1764158390057,0.0008,2918.2,2918.1,0.35331524]
[1764158390322,0.4964,2918.2,2918.1,0.35331524]
[1764158390505,0.4964,2918.2,2918.1,0.216]
[1764158390680,0.0008,2918.2,2918.1,0.684]
[1764158392217,0.4964,2918.2,2918.1,0.216]
[1764158392517,0.0008,2918.2,2918.1,0.216]
[1764158393411,0.4964,2918.2,2918.0,0.35431524]
[1764158393605,0.4964,2918.2,2918.0,0.57031524]
[1764158393782,0.0008,2918.2,2918.0,0.57031524]
[1764158393986,0.0008,2918.2,2918.1,0.468]
[1764158396396,0.0008,2918.2,2918.0,0.57031524]
[1764158396599,0.4964,2918.2,2918.0,0.217]
[1764158397830,0.0008,2918.2,2918.0,0.217]
[1764158398038,0.0008,2918.2,2918.1,0.468]
[1764158398492,0.0008,2918.2,2918.1,0.9192]
[1764158399327,0.4964,2918.2,2918.0,0.217]
[1764158400138,0.0008,2918.2,2918.0,0.217]
[1764158400334,0.4956,2918.1,2918.0,0.001]
[1764158401005,0.9504,2918.1,2918.0,0.001]
[1764158404130,0.9496,2918.1,2918.0,0.001]
[1764158408887,0.0008,2918.2,2918.0,0.4547]
[1764158409062,0.0008,2918.2,2918.1,7.29140583]
[1764158411061,0.002,2918.6,2918.1,7.29140583]
[1764158411062,0.69747713,2919.2,2918.1,7.29140583]
[1764158411237,0.1902,2919.6,2918.5,6.35180583]
[1764158411437,0.477,2919.4,2918.6,0.216]
[1764158411637,0.32070317,2919.3,2918.6,1.24573709]
[1764158411843,0.477,2919.4,2918.6,1.24573709]
[1764158412029,0.79769869,2919.3,2918.6,1.73163709]
[1764158412230,0.32056697,2919.2,2918.6,1.73163709]
[1764158412459,0.477,2919.2,2918.6,1.73163709]
[1764158413486,0.477,2919.2,2918.6,1.24573709]
[1764158413688,0.479,2919.2,2918.6,1.24573709]
[1764158416285,0.479,2919.2,2918.6,8.09474292]
[1764158417187,0.479,2919.2,2918.6,7.06500583]
[1764158417390,0.479,2919.2,2918.6,7.54400583]
[1764158417751,0.479,2919.2,2918.6,7.04680583]
[1764158418096,0.002,2919.2,2919.1,0.6592]
[1764158418559,0.002,2919.2,2919.1,0.4788]
[1764158418758,0.4535,2919.2,2919.1,0.4964]
[1764158419187,0.002,2919.2,2919.1,0.4964]
[1764158419649,0.002,2919.2,2918.9,0.1926]
[1764158419650,0.4535,2919.2,2918.9,0.1926]
[1764158419851,0.4535,2919.2,2918.8,7.04160583]
[1764158419852,0.4515,2919.0,2918.4,6.35180583]
[1764158420052,0.0045,2918.9,2918.8,0.4964]
[1764158420271,0.687,2919.1,2918.8,0.4788]
[1764158420773,0.687,2919.1,2918.6,7.53600583]
[1764158420994,0.687,2919.1,2918.6,6.84900583]
[1764158421205,0.4964,2919.0,2918.5,0.216]
[1764158422185,0.1906,2919.1,2918.8,6.35180583]
[1764158422381,0.4984,2919.2,2918.5,0.216]
[1764158422382,0.002,2919.2,2919.0,6.35180583]
[1764158422907,0.002,2919.2,2919.1,0.976]
[1764158423870,0.002,2919.2,2918.9,0.216]
[1764158423871,0.4531,2919.2,2918.9,0.216]
[1764158424268,0.4531,2919.2,2918.8,6.35180583]
[1764158424474,0.949,2919.2,2918.9,0.216]
[1764158424812,0.4531,2919.2,2918.9,0.216]
[1764158425187,0.002,2919.2,2919.1,0.4788]
[1764158425584,0.002,2919.2,2918.9,0.7132]
[1764158425787,0.002,2919.2,2919.1,0.4788]
[1764158426103,0.002,2919.2,2919.1,1.20439411]
[1764158426273,0.002,2919.2,2919.1,1.70159411]
[1764158428799,0.0012,2919.2,2919.1,1.70159411]
[1764158432121,0.0012,2919.2,2919.1,0.976]
[1764158433005,0.0012,2919.2,2919.1,1.4724]
[1764158433624,0.446,2919.2,2919.1,0.4964]
[1764158433798,0.9419,2919.2,2918.9,0.216]
[1764158434124,0.4971,2919.2,2918.9,0.216]
[1764158434289,0.4971,2919.2,2918.9,6.56780583]
[1764158434290,0.0012,2919.2,2918.9,6.56780583]
[1764158435188,0.4976,2919.2,2918.9,6.56780583]
[1764158435717,0.0012,2919.2,2919.1,0.4788]
[1764158435921,0.0012,2919.2,2919.1,6.83060583]
[1764158436425,0.0012,2919.2,2919.1,7.32700583]
[1764158436891,0.0012,2919.2,2919.1,7.82420583]
[1764158438129,0.0012,2919.2,2919.1,7.32700583]
[1764158438331,0.0012,2919.2,2919.1,8.95530394]
[1764158446734,0.0012,2919.2,2919.1,9.17130394]
[1764158450513,0.0012,2919.2,2919.1,9.27130394]
[1764158451741,0.0012,2919.2,2919.1,9.17130394]
[1764158452518,0.0012,2919.2,2919.1,9.27130394]
[1764158453413,0.0004,2919.2,2919.1,9.27130394]
[1764158454260,0.0004,2919.2,2919.1,9.17130394]
[1764158454562,0.0004,2919.2,2919.1,15.52310977]
[1764158454739,0.0004,2919.2,2919.1,15.62310977]
[1764158455535,0.4998,2920.4,2919.2,1.13109811]
[1764158455740,0.1946,2921.0,2920.1,6.35180583]
[1764158455741,0.4998,2920.2,2920.1,6.35180583]
[1764158455948,0.9438,2920.2,2920.1,6.35180583]
[1764158456958,0.9438,2920.2,2920.0,0.216]
[1764158457163,0.0044,2920.1,2920.0,0.216]
[1764158457359,0.1946,2921.0,2920.0,0.216]
[1764158457562,0.1893,2920.6,2920.4,6.35180583]
[1764158457796,0.1893,2920.6,2920.2,6.35180583]
[1764158457969,0.4563,2920.1,2920.0,7.59696711]
[1764158458165,0.4563,2920.1,2920.0,6.35180583]
[1764158458368,0.9433,2920.1,2920.0,0.216]
[1764158459765,0.4563,2920.1,2920.0,6.56780583]
[1764158460463,0.487,2920.3,2920.0,6.56780583]
[1764158461364,0.4563,2920.1,2920.0,6.56780583]
[1764158462076,0.9433,2920.1,2920.0,6.56780583]
[1764158462274,0.9433,2920.1,2920.0,0.216]
[1764158462875,0.9433,2920.1,2919.8,0.9433]
[1764158463188,0.1942,2919.9,2919.6,6.35180583]
[1764158463488,0.1893,2919.9,2919.7,0.216]
[1764158463666,0.487,2919.8,2919.7,0.216]
[1764158463985,0.4563,2919.8,2919.7,0.216]
[1764158464189,0.4563,2919.8,2919.7,6.56780583]
[1764158464788,0.1893,2920.6,2919.7,0.216]
[1764158465087,0.4998,2920.3,2919.7,0.6901]
[1764158465388,0.444,2919.8,2919.7,0.216]
[1764158467990,0.93,2919.8,2919.7,0.216]
[1764158468892,0.932,2919.8,2919.7,0.216]
[1764158469582,0.446,2919.8,2919.7,0.216]
[1764158470278,0.002,2919.8,2919.7,0.216]
[1764158470482,0.4494,2919.8,2919.7,0.216]
[1764158472560,0.002,2919.8,2919.7,0.216]
[1764158472892,0.4494,2919.8,2919.7,0.216]
[1764158478178,0.4486,2919.8,2919.7,0.216]
[1764158480064,0.0012,2919.8,2919.7,0.216]
[1764158480396,0.0012,2919.8,2919.7,0.6769]
[1764158481678,0.0012,2919.8,2919.7,1.542104]
[1764158485609,0.0012,2919.8,2919.7,1.082404]
[1764158487313,0.9345,2919.8,2919.7,0.4106]
[1764158488107,0.9345,2919.8,2919.7,0.216]
[1764158492140,0.9345,2919.8,2919.6,0.001]
[1764158492306,0.4839,2919.7,2919.6,0.001]
[1764158497571,0.0012,2919.8,2919.6,0.4619]
[1764158497868,0.0012,2919.8,2919.6,0.001]
[1764158499347,0.0012,2919.8,2919.7,0.4609]
[1764158501045,0.4603,2919.8,2919.6,0.001]
[1764158502550,0.0012,2919.8,2919.6,0.001]
[1764158502850,0.0004,2919.8,2919.6,0.001]
[1764158503750,0.4591,2919.7,2919.6,0.001]
[1764158504339,0.4757,2919.8,2919.6,0.001]
[1764158504829,0.0004,2919.8,2919.7,0.4614]
[1764158505358,0.0004,2919.8,2919.7,0.656]
[1764158505559,0.4636,2919.8,2919.6,0.72659411]
[1764158505752,0.4636,2919.8,2919.6,1.20619411]
[1764158506359,0.0004,2919.8,2919.6,1.20619411]
[1764158506934,0.0004,2919.8,2919.6,0.4806]
[1764158507135,0.0004,2919.8,2919.7,1.18699411]
[1764158507329,0.0004,2919.8,2919.7,1.65309411]
[1764158508043,0.0004,2919.8,2919.7,1.66659411]
[1764158508948,0.4636,2919.8,2919.7,0.216]
[1764158510459,0.0004,2919.8,2919.7,0.216]
[1764158511046,0.0004,2919.8,2919.7,1.082904]
[1764158511367,0.1901,2921.7,2919.8,0.505504]
[1764158511531,0.4796,2921.6,2921.0,0.72559411]
[1764158511733,0.4796,2921.6,2921.1,0.216]
[1764158512240,0.4796,2921.6,2921.2,0.4796]
[1764158512640,0.4668,2921.3,2921.1,0.216]
[1764158512970,0.4843,2921.2,2921.1,0.216]
[1764158514661,0.4843,2921.2,2921.0,0.72559411]
[1764158514878,0.4622,2921.1,2920.6,0.216]
[1764158515374,0.0092,2920.7,2920.6,0.216]
[1764158515936,0.4888,2920.7,2920.6,0.216]
[1764158516574,0.4888,2920.7,2920.1,6.34193126]
[1764158516575,0.4888,2920.7,2920.5,0.216]
[1764158516962,0.4577,2920.6,2920.5,0.216]
[1764158518010,0.91569411,2921.7,2920.5,0.216]
[1764158518162,0.79909829,2921.6,2920.5,0.94159411]
[1764158518363,0.4794,2921.6,2920.5,1.40769411]
[1764158518581,0.1901,2921.7,2920.6,0.4661]
[1764158518582,0.4796,2921.5,2920.6,0.4661]
[1764158520162,0.4796,2921.5,2920.7,6.34193126]
[1764158520368,0.4796,2921.5,2920.8,0.72559411]
[1764158520570,0.1901,2921.7,2921.0,6.34193126]
[1764158520795,0.6697,2921.7,2921.0,6.34193126]
[1764158520993,0.6697,2921.7,2921.0,6.80803126]
[1764158521202,0.6697,2921.7,2921.1,0.1856]
[1764158521407,0.4796,2921.6,2921.1,0.1856]
[1764158521885,0.4796,2921.6,2921.1,0.6517]
[1764158522200,0.1901,2921.7,2921.1,0.6517]
[1764158522375,0.4796,2921.9,2921.3,6.34193126]
[1764158522576,0.1906,2922.4,2921.3,6.34193126]
[1764158522577,0.4796,2922.2,2921.4,1.40769411]
[1764158523673,0.002,2921.6,2921.4,1.40769411]
[1764158524086,0.002,2921.6,2921.5,0.4614]
[1764158524784,0.002,2921.6,2921.5,1.333004]
[1764158525301,0.9482,2921.6,2921.5,0.216]
[1764158525713,0.4688,2921.6,2921.5,0.216]
[1764158526721,0.4688,2921.6,2921.0,0.6697]
[1764158526722,0.9482,2921.6,2921.0,0.6697]
[1764158526893,0.4814,2921.6,2921.3,0.216]
[1764158527094,0.4668,2921.1,2920.6,6.33505098]
[1764158527298,0.4796,2921.5,2920.9,0.216]
[1764158527597,0.002,2921.6,2920.7,1.02891773]
[1764158527598,0.4788,2921.4,2920.7,1.02891773]
[1764158527919,0.6569,2920.8,2920.6,0.216]
[1764158528436,0.0047,2920.7,2920.6,0.216]
[1764158528925,0.1985,2921.0,2920.6,0.6872]
[1764158529739,0.4622,2920.7,2920.4,0.72559411]
[1764158530032,0.0162,2920.5,2920.4,0.72559411]
[1764158530235,0.0162,2920.5,2920.4,0.94159411]
[1764158530527,0.4634,2920.9,2920.4,1.41279411]
[1764158531730,0.4634,2920.9,2920.4,7.74784509]
[1764158532030,0.4622,2920.5,2920.4,8.4734392]
[1764158532334,0.4634,2920.9,2920.4,8.4734392]
[1764158533360,0.4634,2920.9,2920.4,8.9500392]
[1764158533658,0.4634,2920.9,2920.4,8.4734392]
[1764158534171,0.4864,2920.9,2920.6,6.33505098]
[1764158534318,0.4511,2920.7,2920.4,8.4686392]
[1764158534643,0.4511,2920.7,2920.4,8.0022392]
[1764158534841,0.4514,2920.5,2920.4,0.94159411]
[1764158535040,0.4514,2920.5,2920.4,0.216]
[1764158535244,0.9371,2920.5,2920.0,0.486]
[1764158535449,0.4857,2920.5,2920.1,0.216]
[1764158535645,0.4864,2920.7,2920.1,0.216]
[1764158536345,0.4864,2920.7,2920.2,6.33505098]
[1764158536918,0.4864,2920.7,2920.1,0.8014]
[1764158536919,0.4864,2920.7,2920.1,0.335]
[1764158539454,0.4864,2920.7,2920.1,0.94159411]
[1764158540969,0.4511,2920.2,2919.7,0.72559411]
[1764158541162,0.4864,2920.7,2919.8,0.94159411]
[1764158541360,0.4864,2920.6,2919.8,0.94159411]